bitfinex-derivatives/quotes_ETHF0:USTF0_20250308
["timestamp","ask_amount","ask_price","bid_price","bid_amount"]
[1741453704719,2.14,2186.1,2185.8,3.2078]
[1741453704907,2.14,2186.1,2185.9,0.6383]
[1741453707321,2.14,2186.1,2185.9,1.272]
[1741453710020,2.14,2186.1,2185.7,0.00685777]
[1741453711225,2.14,2186.1,2185.8,3.2078]
[1741453713218,2.14,2186.1,2185.8,3.94]
[1741453713424,2.14,2186.1,2185.9,0.6545]
[1741453713825,2.14,2186.1,2186.0,0.6142]
[1741453714427,2.14,2186.1,2185.8,3.2078]
[1741453715517,0.00685777,2186.2,2185.9,0.73216]
[1741453715723,0.00685777,2186.2,2186.0,0.6473]
[1741453715922,0.00685777,2186.2,2186.1,0.6142]
[1741453717928,0.00685777,2186.2,2186.1,3.822]
[1741453718328,0.00685777,2186.2,2186.1,4.429]
[1741453722226,0.00685777,2186.2,2186.1,5.1611]
[1741453722432,18.685,2186.5,2186.1,5.1611]
[1741453722433,20.824,2186.5,2186.1,8.429]
[1741453722636,2.139,2186.5,2186.4,3.2078]
[1741453723139,2.139,2186.5,2186.1,7.414]
[1741453723335,2.139,2186.5,2186.1,6.807]
[1741453723633,2.14585777,2186.5,2186.1,6.807]
[1741453724435,2.76745777,2186.5,2186.1,6.807]
[1741453726037,0.62845777,2186.5,2186.1,6.807]
[1741453726224,2.14585777,2186.5,2186.1,7.53908]
[1741453726829,2.14585777,2186.5,2186.1,6.807]
[1741453728728,0.00685777,2186.5,2186.1,6.807]
[1741453728932,0.00685777,2186.5,2186.1,7.53908]
[1741453729132,0.00685777,2186.5,2186.4,3.2078]
[1741453730037,0.00685777,2186.5,2186.4,3.9398]
[1741453730432,0.00685777,2186.5,2186.4,7.9398]
[1741453730740,0.00685777,2186.5,2186.4,3.2078]
[1741453734138,2.14485777,2186.5,2186.4,3.2078]
[1741453734834,2.14485777,2186.5,2186.1,6.807]
[1741453735033,0.65,2186.4,2186.1,6.807]
[1741453737138,2.14485777,2186.5,2186.1,6.807]
[1741453738438,2.14485777,2186.5,2186.1,7.5391]
[1741453739141,2.14485777,2186.5,2186.4,3.2078]
[1741453740039,2.14485777,2186.5,2186.4,3.8345]
[1741453740540,0.00685777,2186.5,2186.4,3.8345]
[1741453741837,2.741,2186.8,2186.4,3.8345]
[1741453741838,2.138,2186.8,2186.4,3.8345]
[1741453742147,2.138,2186.8,2186.7,3.2078]
[1741453742345,2.138,2187.0,2186.7,3.2078]
[1741453747447,0.00685777,2187.1,2186.8,1.2669]
[1741453747642,2.14385777,2187.1,2186.8,1.2669]
[1741453747838,0.00685777,2187.1,2186.8,1.2669]
[1741453748038,0.00685777,2187.1,2186.8,1.99876]
[1741453748344,0.00685777,2187.1,2186.8,1.2669]
[1741453748543,0.00685777,2187.1,2187.0,3.2078]
[1741453751243,2.137,2187.5,2187.0,3.2078]
[1741453751449,3.3836,2187.5,2187.0,3.2078]
[1741453752044,3.3836,2187.5,2187.1,0.636]
[1741453752451,3.39045777,2187.5,2187.1,0.636]
[1741453755247,2.137,2187.4,2187.1,0.636]
[1741453756650,3.2078,2187.2,2186.8,0.64055777]
[1741453756951,0.6329,2187.1,2186.8,0.00685777]
[1741453757152,2.7699,2187.0,2186.8,0.00685777]
[1741453763959,3.2078,2186.9,2186.8,0.00685777]
[1741453768155,3.2078,2186.9,2185.9,5.056]
[1741453768156,7.2078,2186.9,2185.9,5.056]
[1741453768465,2.7699,2187.0,2185.9,5.056]
[1741453768466,3.2078,2186.2,2185.9,4.4498]
[1741453768759,2.136,2186.1,2185.7,2.985]
[1741453769063,2.7478,2186.1,2185.7,2.985]
[1741453769264,3.39585777,2186.1,2185.7,2.99185777]
[1741453770660,3.39585777,2186.1,2185.7,0.00685777]
[1741453770862,0.6153,2186.0,2185.7,0.00685777]
[1741453771460,3.2078,2185.9,2185.7,0.00685777]
[1741453771658,3.2078,2185.9,2185.1,3.6147]
[1741453772164,3.2078,2185.6,2185.1,0.6297]
[1741453772367,3.2078,2185.3,2184.7,2.985]
[1741453772659,2.136,2185.2,2184.8,0.00685777]
[1741453773855,3.2078,2185.0,2184.8,0.00685777]
[1741453775275,0.6299,2184.9,2184.8,7.77e-06]
[1741453775564,1.2562,2184.9,2184.8,7.77e-06]
[1741453775770,5.2562,2184.9,2184.8,7.77e-06]
[1741453775973,1.2562,2184.9,2184.8,7.77e-06]
[1741453777673,3.2078,2185.0,2184.8,7.77e-06]
[1741453777867,2.137,2184.9,2184.8,7.77e-06]
[1741453779769,6.137,2184.9,2183.9,2.985]
[1741453779973,3.2078,2184.3,2183.9,0.6407]
[1741453780165,2.137,2184.2,2183.9,0.6407]
[1741453780368,2.136,2184.1,2183.9,0.6407]
[1741453780669,2.136,2184.1,2183.9,1.2655]
[1741453782779,0.00685777,2184.2,2183.9,5.99833]
[1741453782975,0.00685777,2184.2,2184.1,3.2078]
[1741453784568,0.6387,2184.8,2184.1,3.2078]
[1741453784569,2.137,2184.5,2184.1,3.2078]
[1741453784769,2.137,2184.5,2184.4,3.2078]
[1741453785371,0.6387,2184.8,2184.4,3.2078]
[1741453785372,3.2078,2185.2,2184.4,10.1928]
[1741453785671,0.00685777,2185.0,2184.9,3.2078]
[1741453786169,2.137,2185.6,2184.9,7.2078]
[1741453786374,2.137,2185.6,2185.2,3.2078]
[1741453787366,2.14385777,2185.6,2185.2,3.2078]
[1741453787678,2.14385777,2185.6,2184.9,3.2078]
[1741453787871,3.2078,2185.5,2184.9,3.2078]
[1741453788273,0.6347,2185.4,2184.9,3.2078]
[1741453789869,2.14385777,2185.6,2185.2,3.2078]
[1741453790080,0.00685777,2185.6,2185.3,1.2586]
[1741453790283,2.137,2185.5,2185.3,1.2586]
[1741453790476,0.00685777,2185.6,2185.3,1.2586]
[1741453790672,2.14385777,2185.6,2185.5,3.2078]
[1741453791570,0.00685777,2185.6,2185.5,3.2078]
[1741453795180,0.00685777,2185.6,2185.5,3.9401]
[1741453795572,20.825,2186.1,2185.5,6.1928]
[1741453795781,20.825,2186.1,2186.0,3.2078]
[1741453796081,2.136,2186.1,2186.0,3.2078]
[1741453796679,0.00685777,2186.3,2186.0,3.2078]
[1741453796885,2.136,2186.2,2186.1,1.24]
[1741453799878,0.00685777,2186.3,2186.1,1.24]
[1741453802396,0.00685777,2186.3,2186.1,0.6258]
[1741453802791,0.00685777,2186.3,2186.2,1.36526]
[1741453803187,0.00685777,2186.3,2186.2,0.6332]
[1741453803890,18.686,2186.9,2186.5,0.73194]
[1741453804087,20.821,2186.9,2186.6,3.8175]
[1741453804288,2.135,2186.9,2186.3,6.1928]
[1741453804495,0.6442,2186.8,2186.3,6.1928]
[1741453804991,2.78605777,2186.8,2186.3,6.1928]
[1741453805603,5.99385777,2186.8,2186.3,2.985]
[1741453805804,0.5996,2186.7,2186.3,6.1928]
[1741453807004,0.5996,2186.7,2186.3,6.7893]
[1741453807202,0.5996,2186.7,2186.3,3.8043]
[1741453809508,0.5996,2186.7,2186.3,3.2078]
[1741453810505,3.2078,2186.5,2186.0,3.2078]
[1741453810706,2.134,2186.4,2186.0,3.2078]
[1741453811005,2.7862,2186.4,2186.0,3.2078]
[1741453811908,2.134,2186.4,2186.3,3.2078]
[1741453816505,0.6522,2186.7,2186.3,3.2078]
[1741453816706,2.134,2186.6,2186.4,1.2543]
[1741453817107,2.134,2186.6,2186.5,0.6105]
[1741453817310,0.00685777,2186.8,2186.5,0.6105]
[1741453817613,2.134,2186.7,2186.5,0.6105]
[1741453818313,2.134,2186.7,2186.6,3.2078]
[1741453820004,0.00685777,2186.8,2186.7,0.7319]
[1741453820212,0.00685777,2186.8,2186.6,6.92471]
[1741453820515,0.00685777,2186.8,2186.7,0.7319]
[1741453820903,0.00685777,2186.8,2186.7,1.09867806]
[1741453821103,0.00685777,2186.8,2186.7,0.7319]
[1741453821307,0.00685777,2186.8,2186.6,6.92471]
[1741453823216,0.00685777,2186.8,2186.7,0.7319]
[1741453823920,0.00685777,2186.8,2186.6,2.985]
[1741453824112,0.00685777,2186.8,2186.4,1.2543]
[1741453826514,0.00685777,2186.8,2186.6,3.2078]
[1741453827222,0.00685777,2186.8,2186.5,0.6286]
[1741453828023,0.00685777,2186.8,2186.6,3.2078]
[1741453831020,0.00685777,2186.8,2186.6,3.93972]
[1741453831525,0.00685777,2186.8,2186.6,3.93971]
[1741453832524,0.00685777,2186.8,2186.6,3.2078]
[1741453846037,0.00685777,2186.8,2186.5,0.6286]
[1741453846236,0.00685777,2186.8,2186.7,3.2078]
[1741453853433,0.00685777,2186.8,2186.4,1.2543]
[1741453853434,1.27025777,2186.8,2186.4,4.4621]
[1741453854943,1.27025777,2186.8,2186.4,0.6172]
[1741453855133,3.2078,2186.5,2185.9,0.6471]
[1741453855442,2.131,2186.4,2185.9,1.896]
[1741453855642,0.6253,2186.3,2185.9,1.896]
[1741453856142,3.2078,2186.1,2185.8,0.00685777]
[1741453856338,2.131,2186.0,2185.1,5.1038]
[1741453856547,3.2078,2185.6,2185.1,5.1038]
[1741453856844,2.7738,2185.5,2185.1,4.5021]
[1741453857035,3.2078,2185.3,2185.1,1.2943]
[1741453857644,3.2078,2185.3,2185.1,0.6472]
[1741453858337,3.2078,2185.3,2185.0,0.00685777]
[1741453858838,3.2078,2185.3,2184.5,3.2078]
[1741453859241,2.132,2185.2,2184.5,3.2078]
[1741453860043,2.132,2185.2,2184.8,3.2078]
[1741453860542,2.132,2185.2,2184.6,0.00685777]
[1741453860739,3.2078,2185.0,2184.6,0.00685777]
[1741453861241,2.132,2185.2,2184.6,7.77e-06]
[1741453861242,3.2078,2184.7,2184.6,7.77e-06]
[1741453861562,5.3388,2184.7,2184.6,7.77e-06]
[1741453861847,9.3388,2184.7,2184.6,7.77e-06]
[1741453864643,11.2548,2184.7,2183.3,2.985]
[1741453864846,3.2078,2183.9,2183.2,3.2078]
[1741453865044,2.132,2183.8,2183.2,3.2078]
[1741453865542,0.6259,2183.7,2183.2,3.2078]
[1741453865748,0.00685777,2183.7,2183.3,0.00685777]
[1741453868843,0.00685777,2183.7,2183.3,0.64645777]
[1741453869243,0.00685777,2183.7,2183.5,3.2078]
[1741453869444,2.132,2183.6,2183.5,3.2078]
[1741453869943,0.00685777,2183.7,2183.5,3.2078]
[1741453870143,0.00685777,2183.7,2183.6,0.6294]
[1741453873048,0.00685777,2183.7,2183.5,3.2078]
[1741453873447,0.00685777,2183.7,2183.3,0.00685777]
[1741453874652,0.62715777,2183.7,2183.3,0.00685777]
[1741453875545,3.2078,2183.4,2183.3,7.77e-06]
[1741453875743,5.3408,2183.4,2183.3,7.77e-06]
[1741453876458,9.3408,2183.4,2183.3,7.77e-06]
[1741453876648,11.2568,2183.4,2182.5,3.2078]
[1741453876848,3.2078,2182.8,2182.5,3.2078]
[1741453877152,2.7571,2182.7,2182.5,3.2078]
[1741453877351,2.7571,2182.7,2182.2,0.641]
[1741453877752,0.73328,2182.6,2182.4,3.2078]
[1741453877952,2.7571,2182.7,2182.4,3.2078]
[1741453877953,2.86625,2182.7,2182.4,3.2078]
[1741453878250,2.133,2182.7,2182.4,3.2078]
[1741453878457,2.133,2182.7,2182.3,0.5908]
[1741453878756,2.133,2182.7,2182.4,3.2078]
[1741453879857,0.7333,2182.5,2182.4,3.2078]
[1741453880451,0.7333,2182.5,2181.8,3.5935]
[1741453880452,4.0,2182.5,2181.6,2.985]
[1741453880647,3.2078,2182.2,2181.5,0.5901]
[1741453880849,3.2078,2181.9,2181.1,3.2078]
[1741453881158,18.701,2182.1,2181.3,3.2078]
[1741453881348,18.701,2182.1,2181.6,3.2078]
[1741453881551,2.133,2182.1,2181.6,3.2078]
[1741453881757,0.6091,2182.8,2181.9,3.2078]
[1741453881758,2.133,2182.4,2181.9,3.2078]
[1741453881958,2.133,2182.5,2182.3,3.2078]
[1741453882460,2.133,2182.5,2182.0,0.5901]
[1741453882858,2.133,2182.5,2182.1,3.2078]
[1741453883061,2.13987395,2182.5,2182.1,3.2078]
[1741453885256,2.13987395,2182.5,2182.1,6.1928]
[1741453885464,2.13987395,2182.5,2182.4,3.2078]
[1741453885666,20.834,2182.9,2182.4,3.2078]
[1741453885857,2.133,2182.9,2182.5,1.9194]
[1741453886368,2.133,2182.9,2182.7,3.2078]
[1741453886665,2.133,2182.9,2182.5,1.9194]
[1741453886862,2.133,2182.9,2182.3,3.2078]
[1741453887061,5.3408,2182.9,2182.1,1.2932]
[1741453887259,5.3408,2182.9,2182.0,0.00687395]
[1741453887260,3.2078,2182.6,2182.0,0.00687395]
[1741453887461,2.134,2182.5,2182.0,0.00687395]
[1741453888658,2.134,2182.4,2182.0,0.74033395]
[1741453888964,2.134,2182.4,2182.0,0.65807395]
[1741453889362,2.134,2182.4,2182.0,1.39152395]
[1741453889672,2.134,2182.4,2182.2,3.2078]
[1741453889868,2.134,2182.7,2182.2,3.2078]
[1741453890662,2.134,2182.7,2182.5,3.2078]
[1741453890863,3.21467395,2183.0,2182.5,3.2078]
[1741453890864,2.134,2182.9,2182.6,1.1959]
[1741453891068,2.134,2182.9,2182.8,3.2078]
[1741453891263,0.00687395,2183.0,2182.8,3.2078]
[1741453891469,0.00687395,2183.0,2182.8,3.94099]
[1741453891671,0.00687395,2183.0,2182.9,0.73317]
[1741453892266,0.00687395,2183.0,2182.9,3.71817]
[1741453892469,0.00687395,2183.0,2182.9,2.985]
[1741453894572,0.00687395,2183.0,2182.9,3.71817]
[1741453895064,0.6121,2183.7,2182.9,6.985]
[1741453895268,2.134,2183.6,2183.2,3.2078]
[1741453895972,2.134,2183.6,2183.2,3.7981]
[1741453896177,2.14087395,2183.6,2183.2,3.80497395]
[1741453896474,2.14087395,2183.6,2183.2,3.21467395]
[1741453898269,0.00687395,2183.6,2183.2,3.21467395]
[1741453898473,0.00687395,2183.6,2183.3,0.73302]
[1741453898677,2.13987395,2183.6,2183.2,3.94773395]
[1741453898876,2.13987395,2183.6,2183.3,0.73301]
[1741453899366,2.13987395,2183.6,2183.2,3.94772395]
[1741453899567,2.13987395,2183.6,2183.2,3.21467395]
[1741453901767,2.13987395,2183.6,2183.2,3.94774395]
[1741453901967,2.13987395,2183.6,2183.2,3.94771395]
[1741453902172,0.00687395,2183.6,2183.5,3.94077]
[1741453903373,19.04804376,2184.6,2183.5,7.2078]
[1741453903374,3.2078,2184.5,2183.5,7.2078]
[1741453903576,18.705,2184.6,2184.3,3.2078]
[1741453903577,20.838,2184.6,2184.3,3.2078]
[1741453904482,2.133,2184.6,2184.3,3.2078]
[1741453905076,0.00687395,2184.7,2184.3,3.2078]
[1741453905281,0.00687395,2184.7,2184.4,0.6157]
[1741453905976,0.00687395,2184.7,2184.6,3.2078]
[1741453906380,2.133,2185.6,2184.6,10.1928]
[1741453906583,2.133,2185.6,2184.7,4.56725]
[1741453906877,0.6339,2185.5,2184.7,3.8347]
[1741453907475,0.00687395,2185.3,2184.7,3.8347]
[1741453907674,2.132,2185.2,2184.7,3.8347]
[1741453907879,2.132,2185.2,2184.7,4.56725]
[1741453908179,2.132,2185.2,2184.7,3.8347]
[1741453908686,2.132,2185.2,2184.7,3.2078]
[1741453910276,0.00687395,2185.3,2185.1,3.94021]
[1741453910476,0.00687395,2185.3,2185.1,3.2078]
[1741453913784,0.00687395,2185.3,2184.9,0.6273]
[1741453915983,0.00687395,2185.3,2185.1,3.2078]
[1741453918780,0.00687395,2185.3,2185.1,3.94021]
[1741453918984,0.00687395,2185.3,2185.1,3.2078]
[1741453919883,0.00687395,2185.3,2184.9,0.6273]
[1741453920091,0.00687395,2185.3,2185.0,3.2078]
[1741453920987,0.00687395,2185.3,2184.4,0.606]
[1741453920988,2.131,2185.2,2184.4,3.2078]
[1741453921290,3.2078,2185.0,2184.4,3.2078]
[1741453921790,1.2196,2185.1,2184.4,3.94046]
[1741453921987,4.4274,2185.1,2184.4,3.2078]
[1741453922295,1.2196,2185.1,2184.4,3.2078]
[1741453924389,0.00687395,2185.3,2184.7,3.2078]
[1741453924598,2.131,2185.2,2184.8,1.2023]
[1741453924782,2.131,2185.2,2184.7,3.2078]
[1741453924783,3.2078,2185.1,2184.7,3.2078]
[1741453924988,3.8579,2185.1,2184.7,3.2078]
[1741453925489,3.8579,2185.1,2184.4,3.2078]
[1741453925690,3.2078,2184.8,2184.4,3.2078]
[1741453925892,2.7316,2184.7,2184.4,3.2078]
[1741453926592,2.7316,2184.7,2184.3,0.00687395]
[1741453926593,3.2078,2184.5,2184.3,0.00687395]
[1741453926790,2.7316,2184.7,2184.3,0.00687395]
[1741453926994,3.2078,2184.6,2184.3,0.00687395]
[1741453927187,0.6075,2184.5,2184.3,0.00687395]
[1741453928593,0.6075,2184.5,2183.8,3.2078]
[1741453928796,0.6075,2184.5,2183.8,3.94066]
[1741453929193,0.6075,2184.5,2183.8,3.2078]
[1741453929697,0.6075,2184.5,2183.9,0.00687395]
[1741453930399,2.131,2184.4,2183.9,1.39290395]
[1741453930592,2.131,2184.4,2184.0,0.5954]
[1741453931092,2.131,2184.4,2184.1,3.2078]
[1741453931293,2.131,2184.6,2184.2,0.73272]
[1741453931495,3.7976,2184.9,2184.2,0.73272]
[1741453931496,2.131,2184.8,2184.5,3.2078]
[1741453931795,2.131,2184.8,2184.6,0.6348]
[1741453932001,3.2078,2184.9,2184.6,1.36738]
[1741453932201,3.2078,2184.9,2184.7,0.5949]
[1741453932397,2.131,2185.0,2184.8,3.8295]
[1741453933397,3.2078,2185.4,2184.8,3.8295]
[1741453933604,20.82,2185.1,2184.8,3.8295]
[1741453933793,2.131,2185.1,2184.8,3.8295]
[1741453936297,5.3388,2185.4,2184.8,3.8295]
[1741453936505,3.2078,2185.4,2184.8,4.19424855]
[1741453936699,3.2078,2185.4,2185.2,0.7324]
[1741453936902,2.131,2185.6,2185.2,3.2078]
[1741453946014,21.8988,2185.9,2185.2,7.2078]
[1741453946215,0.59,2186.3,2185.2,10.1928]
[1741453946418,2.13,2186.2,2185.7,3.2078]
[1741453946720,3.2078,2186.1,2185.7,3.2078]
[1741453946913,0.6075,2186.0,2185.4,3.8173]
[1741453947314,0.00687395,2185.9,2185.4,3.8173]
[1741453947621,0.00687395,2185.9,2185.7,3.2078]
[1741453947828,0.00687395,2185.9,2185.8,0.6435]
[1741453948016,0.00687395,2185.9,2185.7,3.2078]
[1741453950926,0.00687395,2185.9,2185.8,0.7322]
[1741453951423,0.00687395,2185.9,2185.7,6.92501]
[1741453951624,3.2078,2186.5,2185.7,8.02332]
[1741453951825,2.5093,2187.3,2186.4,3.2078]
[1741453951826,2.13,2187.0,2186.4,3.2078]
[1741453952025,2.13,2187.0,2186.5,0.6266]
[1741453952418,2.13,2187.0,2186.7,3.2078]
[1741453953324,0.00442364,2187.1,2186.7,3.2078]
[1741453953629,2.13,2187.0,2186.7,3.2078]
[1741453953824,0.00442364,2187.1,2186.7,3.2078]
[1741453954029,3.2078,2187.8,2187.0,3.2078]
[1741453954330,2.188,2187.9,2187.3,3.2078]
[1741453954623,2.186,2187.8,2187.3,3.2078]
[1741453956424,5.3938,2187.8,2187.0,3.2078]
[1741453956724,2.26337564,2188.3,2187.0,3.2078]
[1741453956725,3.2078,2187.4,2187.0,3.2078]
[1741453956926,2.185,2187.3,2186.7,2.985]
[1741453957124,3.2078,2187.1,2186.6,3.21467395]
[1741453957321,0.6085,2187.0,2186.6,3.21467395]
[1741453957521,2.184,2186.9,2186.6,3.21467395]
[1741453960030,2.184,2186.9,2186.6,0.00687395]
[1741453961129,1.2396,2187.0,2186.6,0.00687395]
[1741453961330,2.182,2187.5,2187.0,0.73177]
[1741453961535,2.182,2187.5,2187.0,0.6126]
[1741453961536,2.183,2187.5,2187.0,0.6126]
[1741453961723,2.183,2187.5,2187.0,1.34438]
[1741453961933,3.2078,2187.8,2187.0,4.2266]
[1741453962227,2.182,2187.7,2187.2,3.2078]
[1741453962834,2.182,2187.6,2187.2,3.2078]
[1741453965037,3.2078,2187.8,2187.2,3.2078]
[1741453965335,2.176,2187.7,2187.2,3.2078]
[1741453966529,3.2078,2187.8,2187.2,3.93953]
[1741453966728,2.174,2187.7,2187.6,3.2078]
[1741453967135,2.174,2187.7,2187.2,3.2078]
[1741453967730,5.3818,2187.7,2187.2,3.2078]
[1741453969032,3.2078,2187.4,2187.0,0.6126]
[1741453969234,2.168,2187.3,2187.0,0.6126]
[1741453969435,2.168,2187.3,2187.2,3.2078]
[1741453970133,0.5914,2187.8,2187.2,3.2078]
[1741453970343,2.166,2187.7,2187.5,3.2078]
[1741453970632,2.166,2187.7,2187.6,0.6132]
[1741453971133,2.167,2188.0,2187.6,0.6132]
[1741453971442,18.676,2188.1,2187.6,1.2126]
[1741453971443,20.843,2188.1,2187.6,1.2126]
[1741453972233,20.843,2188.1,2187.8,3.2078]
[1741453972541,20.843,2188.1,2187.7,0.00685714]
[1741453974432,20.843,2188.1,2187.8,3.2078]
[1741453977343,2.156,2188.2,2187.8,3.2078]
[1741453978040,2.155,2188.2,2187.8,3.2078]
[1741453979331,2.155,2188.2,2187.7,0.00685714]
[1741453979935,0.6508,2188.1,2187.7,0.00685714]
[1741453980637,3.2078,2188.0,2187.7,0.00685714]
[1741453980834,0.6124,2187.9,2187.7,0.00685714]
[1741453981037,2.151,2187.8,2187.2,3.2078]
[1741453981237,3.2078,2187.6,2187.2,3.2078]
[1741453981946,2.151,2187.8,2187.2,3.2078]
[1741453982242,0.0068011,2187.6,2187.2,3.21465714]
[1741453983942,0.0068011,2187.6,2187.5,3.2078]
[1741453984241,2.7978,2188.1,2187.5,3.2078]
[1741453984441,2.7978,2188.1,2187.6,0.618]
[1741453984740,2.7978,2188.1,2187.8,3.2078]
[1741453984741,2.148,2188.1,2187.8,3.2078]
[1741453985646,5.3538,2188.2,2187.8,3.2078]
[1741453986347,1.2633,2188.5,2188.1,3.2078]
[1741453986541,2.144,2188.4,2188.1,3.2078]
[1741453987446,2.144,2188.4,2187.8,3.2078]
[1741453987650,5.3518,2188.4,2187.8,3.2078]
[1741453987838,1.2799,2188.3,2187.8,3.2078]
[1741453988652,3.2078,2188.1,2187.7,0.5954]
[1741453988851,2.139,2188.0,2187.7,0.5954]
[1741453989947,2.136,2188.0,2187.8,3.2078]
[1741453993752,2.136,2188.0,2187.4,3.2078]
[1741453993950,2.136,2188.0,2187.3,0.6517]
[1741453994146,2.136,2188.0,2187.4,3.2078]
[1741453994543,2.136,2188.0,2187.7,3.2078]
[1741453994745,2.136,2188.0,2187.7,3.93935]
[1741453994945,2.136,2188.0,2187.7,3.2078]
[1741453995153,2.136,2188.0,2187.8,0.6071]
[1741453995751,0.6361,2188.6,2187.8,0.6071]
[1741453995947,2.139,2188.5,2188.0,3.2078]
[1741453996147,2.139,2188.5,2188.1,0.6166]
[1741453996343,1.2456,2188.4,2187.8,0.6071]
[1741453996545,44.14698876,2199.0,2189.6,3.2078]
[1741453996546,1.21078132,2191.3,2189.6,3.2078]
[1741453996847,4.41858132,2191.3,2190.9,3.2078]
[1741453997152,1.2857,2191.2,2190.2,0.00685714]
[1741453997356,1.2857,2191.2,2191.1,3.2078]
[1741453997546,2.331,2191.9,2191.1,3.2078]
[1741453997753,2.331,2191.9,2190.2,2.70063806]
[1741453997754,2.934,2191.9,2191.6,3.2078]
[1741453997955,3.2078,2191.7,2191.1,3.2078]
[1741453998154,3.2078,2191.7,2191.5,0.00685714]
[1741453998361,3.2078,2191.7,2190.2,2.985]
[1741453998362,3.2078,2191.7,2190.9,3.2078]
[1741453998554,1.916,2191.6,2190.9,3.2078]
[1741453998755,2.339,2191.5,2190.9,3.2078]
[1741453999555,0.00685714,2191.4,2191.0,0.00685714]
[1741453999763,3.21465714,2191.4,2190.9,3.2078]
[1741454000259,0.5905,2191.3,2190.9,3.2078]
[1741454000657,2.331,2191.2,2190.9,3.2078]
[1741454000856,2.331,2191.2,2190.9,3.21465714]
[1741454001059,2.5065,2191.3,2190.9,3.21465714]
[1741454001459,2.329,2191.2,2190.9,3.21465714]
[1741454001657,2.329,2191.2,2190.9,0.00685714]
[1741454001858,3.2078,2191.0,2190.9,0.00685714]
[1741454002057,3.2078,2191.0,2190.3,3.2078]
[1741454002254,3.8135,2191.1,2190.6,3.2078]
[1741454002863,3.2078,2190.8,2190.3,3.2078]
[1741454003060,3.2078,2190.8,2190.3,3.21465714]
[1741454003061,2.336,2190.7,2190.3,3.21465714]
[1741454004661,1.916,2191.2,2190.3,3.21465714]
[1741454004662,3.2078,2191.5,2190.3,3.21465714]
[1741454004870,2.33,2191.2,2190.9,3.2078]
[1741454005364,2.338,2191.1,2190.9,3.2078]
[1741454008068,6.338,2191.1,2190.6,3.2078]
[1741454008264,2.338,2191.1,2190.6,3.2078]
[1741454008467,2.338,2191.1,2190.3,3.21465714]
[1741454008468,3.2078,2190.9,2190.3,3.21465714]
[1741454008763,3.2078,2190.6,2190.3,3.21465714]
[1741454008970,2.328,2190.5,2190.3,3.21465714]
[1741454009273,2.9519,2190.5,2189.8,3.2078]
[1741454009473,2.9519,2190.5,2190.1,3.2078]
[1741454009970,2.9519,2190.5,2189.8,3.2078]
[1741454010469,3.2078,2190.3,2189.9,0.00685714]
[1741454010659,3.2078,2190.0,2189.5,3.2078]
[1741454010866,2.9692,2189.9,2189.2,3.2078]
[1741454011766,0.00685714,2189.8,2189.3,0.00685714]
[1741454013567,3.2078,2189.7,2189.3,0.00685714]
[1741454014374,3.8039,2189.7,2189.3,0.00685714]
[1741454015771,7.8039,2189.7,2189.3,0.00685714]
[1741454015975,3.8039,2189.7,2189.3,0.00685714]
[1741454017675,3.2078,2189.4,2188.6,3.2078]
[1741454017970,1.916,2189.6,2188.6,3.2078]
[1741454017971,2.303,2189.3,2188.6,3.2078]
[1741454018370,2.303,2189.3,2188.9,3.2078]
[1741454018879,2.303,2189.3,2188.9,3.21237144]
[1741454022781,2.303,2189.3,2188.9,0.00457144]
[1741454022782,3.2078,2189.2,2188.9,0.00457144]
[1741454022975,3.8568,2189.2,2188.9,0.00457144]
[1741454026386,0.649,2189.2,2188.9,0.00457144]
[1741454026782,3.2078,2189.0,2188.2,0.6013]
[1741454027081,2.289,2188.9,2188.0,3.2078]
[1741454027279,4.205,2188.9,2188.0,3.2078]
[1741454027480,4.205,2188.9,2188.3,3.2078]
[1741454027688,4.205,2188.9,2187.8,1.2639]
[1741454027689,4.205,2188.9,2188.6,3.2078]
[1741454027882,0.00685714,2188.8,2188.6,3.2078]
[1741454029581,2.286,2189.2,2188.7,1.2259]
[1741454029788,2.286,2189.1,2188.9,3.2078]
[1741454029983,3.2078,2189.7,2188.9,3.2078]
[1741454029984,2.287,2189.0,2188.9,3.2078]
[1741454033291,0.00685714,2189.2,2188.9,3.2078]
[1741454033491,2.276,2189.1,2188.9,3.2078]
[1741454037686,2.262,2189.1,2188.9,3.2078]
[1741454038687,2.259,2189.1,2188.9,3.2078]
[1741454039282,2.259,2189.1,2188.7,0.00685714]
[1741454039483,3.2078,2188.8,2188.0,3.2078]
[1741454039687,2.264,2188.7,2188.0,3.2078]
[1741454039893,2.264,2188.7,2188.3,3.2078]
[1741454041494,3.2078,2188.6,2188.0,3.2078]
[1741454044897,0.6472,2188.5,2188.0,3.2078]
[1741454046794,2.249,2188.4,2188.3,3.2078]
[1741454047393,2.251,2188.4,2188.3,3.2078]
[1741454047597,2.251,2188.8,2188.3,7.2078]
[1741454047799,2.251,2188.8,2188.7,3.2078]
[1741454049299,0.00685714,2189.2,2188.7,7.2078]
[1741454049595,0.00685714,2189.2,2189.1,3.2078]
[1741454052194,2.246,2189.5,2189.1,7.2078]
[1741454052396,2.246,2189.5,2189.4,3.2078]
[1741454055197,2.249,2189.5,2189.4,3.2078]
[1741454056600,2.254,2189.5,2189.4,3.2078]
[1741454058601,2.882,2189.5,2189.4,3.2078]
[1741454060502,2.882,2189.5,2189.2,0.00685714]
[1741454060692,0.00685714,2189.7,2189.2,0.00685714]